[Event "Rapid del Mercoledì"]
[Site "Chess.com"]
[Date "2020.05.27"]
[Round "1"]
[White "fausto2p"]
[Black "malberici"]
[Result "0-1"]
[WhiteElo "1189"]
[BlackElo "1457"]
[TimeControl "720+3"]
[EndTime "12:06:20 PDT"]
[Termination "malberici ha vinto per abbandono"]

1. d4 {[%clk 0:12:00.7]} 1... g6 {[%clk 0:11:58.2]} 2. c4 {[%clk 0:11:57.5]}
2... Nf6 {[%clk 0:12:00.3]} 3. Nc3 {[%clk 0:11:58.3]} 3... d6 {[%clk 0:12:02.4]}
4. e4 {[%clk 0:11:57.2]} 4... Bg7 {[%clk 0:12:04.6]} 5. f3 {[%clk 0:11:36.1]}
5... O-O {[%clk 0:12:02.4]} 6. Be3 {[%clk 0:11:35.2]} 6... c6 {[%clk 0:11:59.3]}
7. g4 {[%clk 0:11:30.3]} 7... a6 {[%clk 0:11:44.9]} 8. Nge2 {[%clk 0:11:04.8]}
8... b5 {[%clk 0:11:42.9]} 9. Ng3 {[%clk 0:10:20.6]} 9... Nbd7 {[%clk 0:11:34]}
10. Qd2 {[%clk 0:09:36.1]} 10... Bb7 {[%clk 0:11:17.3]} 11. h4 {[%clk
0:09:15.3]} 11... b4 {[%clk 0:11:05.5]} 12. Nce2 {[%clk 0:09:11]} 12... c5
{[%clk 0:11:04.2]} 13. d5 {[%clk 0:09:08]} 13... Ne5 {[%clk 0:10:51]} 14. b3
{[%clk 0:08:57.3]} 14... Nxf3+ {[%clk 0:10:50.4]} 0-1

[Event "Rapid del Mercoledì"]
[Site "Chess.com"]
[Date "2020.05.27"]
[Round "1"]
[White "sirmale49"]
[Black "pedrak"]
[Result "0-1"]
[WhiteElo "1370"]
[BlackElo "1680"]
[TimeControl "720+3"]
[EndTime "12:09:45 PDT"]
[Termination "pedrak ha vinto per abbandono"]

1. f4 {[%clk 0:11:57.4]} 1... d5 {[%clk 0:11:53.7]} 2. Nf3 {[%clk 0:11:55.7]}
2... Bf5 {[%clk 0:11:53.2]} 3. g3 {[%clk 0:11:54.9]} 3... h6 {[%clk 0:11:53.2]}
4. Bg2 {[%clk 0:11:53.1]} 4... Nf6 {[%clk 0:11:53.6]} 5. e3 {[%clk 0:11:51.3]}
5... e6 {[%clk 0:11:54.2]} 6. O-O {[%clk 0:11:51.4]} 6... Be7 {[%clk 0:11:53.5]}
7. Nc3 {[%clk 0:11:51.7]} 7... c6 {[%clk 0:11:54.8]} 8. d3 {[%clk 0:11:40.7]}
8... O-O {[%clk 0:11:55.2]} 9. b3 {[%clk 0:11:28.7]} 9... Nbd7 {[%clk 0:11:53]}
10. Bb2 {[%clk 0:11:18.2]} 10... Qc7 {[%clk 0:11:53.2]} 11. Ne2 {[%clk
0:10:42.9]} 11... Rfe8 {[%clk 0:11:44.2]} 12. Ne5 {[%clk 0:10:43.2]} 12... Rad8
{[%clk 0:11:38.1]} 13. a4 {[%clk 0:09:32.9]} 13... Ng4 {[%clk 0:11:36.9]} 14.
Nxg4 {[%clk 0:09:20.1]} 14... Bxg4 {[%clk 0:11:37.6]} 15. Bf3 {[%clk 0:09:21.5]}
15... Bxf3 {[%clk 0:11:36.9]} 16. Rxf3 {[%clk 0:09:21.4]} 16... Bf6 {[%clk
0:11:35.7]} 17. d4 {[%clk 0:09:16.6]} 17... Be7 {[%clk 0:11:30.2]} 18. Nc1
{[%clk 0:08:43.1]} 18... Nf6 {[%clk 0:11:27.6]} 19. Nd3 {[%clk 0:08:35.7]} 19...
Ne4 {[%clk 0:11:28.6]} 20. Nf2 {[%clk 0:08:27.5]} 20... f5 {[%clk 0:11:18.6]}
21. Nxe4 {[%clk 0:08:28.1]} 21... fxe4 {[%clk 0:11:19.8]} 22. Ba3 {[%clk
0:08:13.4]} 22... exf3 {[%clk 0:11:15.6]} 23. Qxf3 {[%clk 0:08:11.7]} 23... Bxa3
{[%clk 0:11:14.9]} 24. Rxa3 {[%clk 0:08:11.8]} 24... Qd6 {[%clk 0:11:16.3]} 25.
Ra1 {[%clk 0:08:07.1]} 25... c5 {[%clk 0:11:14.9]} 26. Rd1 {[%clk 0:07:43.6]}
26... b6 {[%clk 0:11:12.5]} 27. e4 {[%clk 0:07:23.6]} 27... dxe4 {[%clk
0:11:07.4]} 28. Qxe4 {[%clk 0:07:23.2]} 28... cxd4 {[%clk 0:11:07.6]} 29. Rd3
{[%clk 0:07:21.8]} 29... Qd5 {[%clk 0:10:58.5]} 30. Qe5 {[%clk 0:07:04]} 30...
Qxe5 {[%clk 0:10:58.6]} 31. fxe5 {[%clk 0:07:03.5]} 31... Rd5 {[%clk 0:10:59.7]}
0-1

[Event "Rapid del Mercoledì"]
[Site "Chess.com"]
[Date "2020.05.27"]
[Round "1"]
[White "mr6701"]
[Black "sergiodone"]
[Result "1-0"]
[WhiteElo "1751"]
[BlackElo "1434"]
[TimeControl "720+3"]
[EndTime "12:11:08 PDT"]
[Termination "mr6701 ha vinto per scaccomatto"]

1. e4 {[%clk 0:12:02.9]} 1... c5 {[%clk 0:11:58.7]} 2. d4 {[%clk 0:12:05.3]}
2... cxd4 {[%clk 0:11:59.3]} 3. c3 {[%clk 0:12:07.8]} 3... dxc3 {[%clk
0:11:54.4]} 4. Nxc3 {[%clk 0:12:10.7]} 4... d6 {[%clk 0:11:52.4]} 5. Nf3 {[%clk
0:12:13.6]} 5... a6 {[%clk 0:11:52.3]} 6. Bc4 {[%clk 0:12:15.2]} 6... e6 {[%clk
0:11:54.1]} 7. O-O {[%clk 0:12:16.7]} 7... Be7 {[%clk 0:11:55]} 8. Qe2 {[%clk
0:12:18.4]} 8... Nc6 {[%clk 0:11:45]} 9. Rd1 {[%clk 0:12:20.1]} 9... Qc7 {[%clk
0:11:45.6]} 10. Bf4 {[%clk 0:12:20.9]} 10... e5 {[%clk 0:11:46.2]} 11. Nd5
{[%clk 0:12:10.4]} 11... Qd8 {[%clk 0:11:41.5]} 12. Be3 {[%clk 0:12:07.7]} 12...
Nd4 {[%clk 0:11:12.7]} 13. Nxd4 {[%clk 0:11:57]} 13... exd4 {[%clk 0:11:13.9]}
14. Bxd4 {[%clk 0:11:57.1]} 14... Kf8 {[%clk 0:10:33.2]} 15. Nb6 {[%clk
0:11:40.5]} 15... Rb8 {[%clk 0:10:23.7]} 16. Qf3 {[%clk 0:11:35]} 16... Nf6
{[%clk 0:09:42.4]} 17. h3 {[%clk 0:10:33.5]} 17... Qc7 {[%clk 0:08:46.3]} 18.
Rac1 {[%clk 0:10:27]} 18... Qc6 {[%clk 0:08:23.9]} 19. Bd5 {[%clk 0:10:13.9]}
19... Qb5 {[%clk 0:08:25.4]} 20. Nxc8 {[%clk 0:10:01.1]} 20... Nxd5 {[%clk
0:08:20.9]} 21. exd5 {[%clk 0:09:52.7]} 21... Qd7 {[%clk 0:07:55.9]} 22. Nb6
{[%clk 0:09:42.1]} 22... Qd8 {[%clk 0:07:53.3]} 23. Qg4 {[%clk 0:09:36]} 23...
Bf6 {[%clk 0:06:35.1]} 24. Nd7+ {[%clk 0:09:30.6]} 24... Ke7 {[%clk 0:06:32.8]}
25. Bxf6+ {[%clk 0:09:08.1]} 25... gxf6 {[%clk 0:06:31.8]} 26. Re1# {[%clk
0:09:10]} 1-0

[Event "Rapid del Mercoledì"]
[Site "Chess.com"]
[Date "2020.05.27"]
[Round "1"]
[White "caramante"]
[Black "SanSecondoPR"]
[Result "1-0"]
[WhiteElo "1582"]
[BlackElo "1309"]
[TimeControl "720+3"]
[EndTime "12:15:03 PDT"]
[Termination "caramante ha vinto per scaccomatto"]

1. Nf3 {[%clk 0:12:01.8]} 1... Nc6 {[%clk 0:11:58.7]} 2. d4 {[%clk 0:12:02.2]}
2... d5 {[%clk 0:11:58.4]} 3. g3 {[%clk 0:12:04.2]} 3... Nf6 {[%clk 0:11:56.2]}
4. Bg2 {[%clk 0:11:55]} 4... g6 {[%clk 0:11:56.8]} 5. O-O {[%clk 0:11:25]} 5...
Bg7 {[%clk 0:11:57.8]} 6. c3 {[%clk 0:11:26.4]} 6... O-O {[%clk 0:11:58.2]} 7.
h3 {[%clk 0:11:25.4]} 7... Re8 {[%clk 0:11:42.2]} 8. Re1 {[%clk 0:11:25.9]} 8...
e5 {[%clk 0:11:41.9]} 9. dxe5 {[%clk 0:11:26.2]} 9... Nxe5 {[%clk 0:11:39.8]}
10. Nxe5 {[%clk 0:11:27.6]} 10... Rxe5 {[%clk 0:11:37.4]} 11. Nd2 {[%clk
0:11:27.6]} 11... Qd6 {[%clk 0:11:20.1]} 12. Nf3 {[%clk 0:11:22.6]} 12... Re7
{[%clk 0:10:51.5]} 13. Qb3 {[%clk 0:11:12.6]} 13... c5 {[%clk 0:10:30.5]} 14.
Bf4 {[%clk 0:11:11.7]} 14... Qa6 {[%clk 0:09:53.3]} 15. g4 {[%clk 0:11:04.3]}
15... Rxe2 {[%clk 0:09:06.4]} 16. Bg3 {[%clk 0:10:57.8]} 16... Be6 {[%clk
0:07:46.4]} 17. Rxe2 {[%clk 0:10:48.5]} 17... Qxe2 {[%clk 0:07:45.5]} 18. Qxb7
{[%clk 0:10:49.1]} 18... Re8 {[%clk 0:07:30.4]} 19. Re1 {[%clk 0:10:38.9]} 19...
Qc2 {[%clk 0:06:36.7]} 20. Ng5 {[%clk 0:10:25.9]} 20... Qd2 {[%clk 0:05:30.8]}
21. Rxe6 {[%clk 0:08:59.7]} 21... Qxg5 {[%clk 0:05:11.5]} 22. Rxe8+ {[%clk
0:08:52.1]} 22... Nxe8 {[%clk 0:05:09]} 23. Bxd5 {[%clk 0:08:49.7]} 23... Nd6
{[%clk 0:04:37.5]} 24. Qb8+ {[%clk 0:08:32.5]} 24... Bf8 {[%clk 0:04:21.5]} 25.
Bxd6 {[%clk 0:08:28]} 25... Qc1+ {[%clk 0:04:17.1]} 26. Kg2 {[%clk 0:08:28.3]}
26... Kg7 {[%clk 0:04:10.3]} 27. Qxf8+ {[%clk 0:08:13.9]} 27... Kf6 {[%clk
0:04:10.2]} 28. Qxf7+ {[%clk 0:08:13.6]} 28... Kg5 {[%clk 0:04:09.8]} 29. f4+
{[%clk 0:08:10.8]} 29... Kh4 {[%clk 0:04:07.1]} 30. Qxh7# {[%clk 0:08:08.2]} 1-0

[Event "Rapid del Mercoledì"]
[Site "Chess.com"]
[Date "2020.05.27"]
[Round "1"]
[White "Mrtre7"]
[Black "Carbon"]
[Result "0-1"]
[WhiteElo "1437"]
[BlackElo "1775"]
[TimeControl "720+3"]
[EndTime "12:19:23 PDT"]
[Termination "Carbon ha vinto per abbandono"]

1. d4 {[%clk 0:11:59.9]} 1... Nf6 {[%clk 0:12:00.3]} 2. c4 {[%clk 0:12:01.5]}
2... g6 {[%clk 0:12:01.4]} 3. Nc3 {[%clk 0:12:02.6]} 3... Bg7 {[%clk 0:12:03.3]}
4. e4 {[%clk 0:12:03.6]} 4... d6 {[%clk 0:12:05.2]} 5. Nf3 {[%clk 0:12:05]} 5...
O-O {[%clk 0:12:06.8]} 6. Be2 {[%clk 0:12:06.6]} 6... e5 {[%clk 0:12:06.5]} 7.
Be3 {[%clk 0:12:05.9]} 7... Ng4 {[%clk 0:12:05.4]} 8. Bc1 {[%clk 0:12:06.4]}
8... f5 {[%clk 0:11:58.2]} 9. h3 {[%clk 0:11:58.5]} 9... Nxf2 {[%clk 0:11:06.9]}
10. Kxf2 {[%clk 0:11:16.4]} 10... fxe4 {[%clk 0:10:43.1]} 11. Nxe4 {[%clk
0:10:26]} 11... Qh4+ {[%clk 0:10:14]} 12. Ng3 {[%clk 0:09:08.3]} 12... e4 {[%clk
0:09:20.5]} 13. Bg5 {[%clk 0:09:06.1]} 13... Qxg5 {[%clk 0:08:57.1]} 14. Nxe4
{[%clk 0:09:07.7]} 14... Qf4 {[%clk 0:08:49.5]} 15. Qd3 {[%clk 0:08:41.4]} 15...
Bf5 {[%clk 0:08:32.2]} 16. Qd2 {[%clk 0:04:41.6]} 16... Qxe4 {[%clk 0:07:22.4]}
17. Rhe1 {[%clk 0:04:36.9]} 17... Nc6 {[%clk 0:06:25.5]} 18. Kg1 {[%clk
0:04:35.8]} 18... Nxd4 {[%clk 0:06:05.9]} 19. Ng5 {[%clk 0:04:18]} 19... Nxe2+
{[%clk 0:05:36.4]} 20. Rxe2 {[%clk 0:04:17.9]} 20... Qd4+ {[%clk 0:05:14.6]} 21.
Qxd4 {[%clk 0:04:00.1]} 21... Bxd4+ {[%clk 0:05:15]} 22. Kh1 {[%clk 0:04:02.3]}
22... Rae8 {[%clk 0:04:45.5]} 23. Rae1 {[%clk 0:04:02.9]} 23... Rxe2 {[%clk
0:04:39.3]} 24. Rxe2 {[%clk 0:04:04.9]} 24... h6 {[%clk 0:04:32.7]} 25. Nf3
{[%clk 0:03:55.2]} 25... Bf6 {[%clk 0:04:29]} 26. g4 {[%clk 0:03:45.7]} 26...
Bd7 {[%clk 0:04:25.9]} 27. h4 {[%clk 0:03:45.5]} 27... Bc6 {[%clk 0:04:24.8]}
28. Rf2 {[%clk 0:03:33.6]} 28... Bd4 {[%clk 0:04:15.8]} 0-1

[Event "Rapid del Mercoledì"]
[Site "Chess.com"]
[Date "2020.05.27"]
[Round "2"]
[White "malberici"]
[Black "mr6701"]
[Result "0-1"]
[WhiteElo "1451"]
[BlackElo "1763"]
[TimeControl "720+3"]
[EndTime "12:33:39 PDT"]
[Termination "mr6701 ha vinto per abbandono"]

1. d4 {[%clk 0:12:02.9]} 1... d5 {[%clk 0:12:01.8]} 2. c4 {[%clk 0:12:03.4]}
2... e6 {[%clk 0:12:03.8]} 3. a3 {[%clk 0:12:04.3]} 3... Nf6 {[%clk 0:12:06.1]}
4. Nf3 {[%clk 0:12:05.1]} 4... Be7 {[%clk 0:12:05.8]} 5. Nc3 {[%clk 0:12:06.2]}
5... O-O {[%clk 0:12:07.7]} 6. e3 {[%clk 0:12:05.2]} 6... b6 {[%clk 0:12:09.5]}
7. b4 {[%clk 0:12:04.8]} 7... dxc4 {[%clk 0:12:07.4]} 8. Bxc4 {[%clk 0:12:04.4]}
8... Bb7 {[%clk 0:12:09.8]} 9. Bb2 {[%clk 0:12:02.9]} 9... Nbd7 {[%clk 0:12:11]}
10. Rc1 {[%clk 0:12:00.8]} 10... Ne4 {[%clk 0:11:50.1]} 11. Ba2 {[%clk
0:11:46.6]} 11... Ndf6 {[%clk 0:11:35]} 12. Nb5 {[%clk 0:11:28.4]} 12... c6
{[%clk 0:11:28.5]} 13. Nc3 {[%clk 0:11:14.3]} 13... a5 {[%clk 0:11:29.5]} 14.
Bb1 {[%clk 0:11:12.9]} 14... Nd6 {[%clk 0:10:45.3]} 15. e4 {[%clk 0:11:01.6]}
15... axb4 {[%clk 0:10:40.3]} 16. axb4 {[%clk 0:11:01.4]} 16... Nc4 {[%clk
0:10:40.2]} 17. Qc2 {[%clk 0:10:54.2]} 17... g6 {[%clk 0:10:19.1]} 18. e5 {[%clk
0:10:48.9]} 18... Nd5 {[%clk 0:10:12.8]} 19. O-O {[%clk 0:10:35.4]} 19... Nxb4
{[%clk 0:10:01.7]} 20. Qe2 {[%clk 0:10:20.3]} 20... Ba6 {[%clk 0:09:53.3]} 21.
Ne4 {[%clk 0:09:58.9]} 21... Nxe5 {[%clk 0:09:39.2]} 22. Qe3 {[%clk 0:09:42.2]}
22... Nxf3+ {[%clk 0:09:27.5]} 23. Qxf3 {[%clk 0:09:28.9]} 23... Bxf1 {[%clk
0:09:26.3]} 24. Kxf1 {[%clk 0:09:16.8]} 24... Qd5 {[%clk 0:08:37.9]} 25. Nf6+
{[%clk 0:09:01.8]} 25... Bxf6 {[%clk 0:08:38.1]} 26. Qxf6 {[%clk 0:09:02.3]}
26... Qb5+ {[%clk 0:07:44.2]} 27. Kg1 {[%clk 0:08:56]} 27... Nd5 {[%clk
0:07:46.3]} 28. Qg5 {[%clk 0:06:30.2]} 28... Qxb2 {[%clk 0:07:41.7]} 29. h4
{[%clk 0:06:26.9]} 29... Ra1 {[%clk 0:07:33.4]} 30. h5 {[%clk 0:06:14]} 30...
Rxb1 {[%clk 0:07:32.7]} 31. hxg6 {[%clk 0:06:07.4]} 31... Qxc1+ {[%clk
0:07:28.7]} 0-1

[Event "Rapid del Mercoledì"]
[Site "Chess.com"]
[Date "2020.05.27"]
[Round "2"]
[White "Carbon"]
[Black "pedrak"]
[Result "0-1"]
[WhiteElo "1762"]
[BlackElo "1690"]
[TimeControl "720+3"]
[EndTime "12:34:05 PDT"]
[Termination "pedrak ha vinto per abbandono"]

1. e4 {[%clk 0:12:02.6]} 1... e6 {[%clk 0:12:00]} 2. d4 {[%clk 0:12:02.6]} 2...
d5 {[%clk 0:12:00.7]} 3. e5 {[%clk 0:12:04.4]} 3... b6 {[%clk 0:11:59.5]} 4. Be2
{[%clk 0:11:34.9]} 4... Ba6 {[%clk 0:11:55.1]} 5. Nf3 {[%clk 0:11:33.2]} 5... c5
{[%clk 0:11:47.5]} 6. c3 {[%clk 0:11:29]} 6... Bxe2 {[%clk 0:11:48.3]} 7. Qxe2
{[%clk 0:11:30.2]} 7... Nc6 {[%clk 0:11:46.7]} 8. O-O {[%clk 0:11:27.9]} 8...
Nge7 {[%clk 0:11:45.5]} 9. Bg5 {[%clk 0:10:36.5]} 9... Qd7 {[%clk 0:11:41.9]}
10. Nbd2 {[%clk 0:10:27.3]} 10... Nf5 {[%clk 0:11:41.9]} 11. Nb3 {[%clk
0:10:08.8]} 11... h6 {[%clk 0:11:28.5]} 12. Be3 {[%clk 0:09:58.7]} 12... c4
{[%clk 0:11:25]} 13. Nbd2 {[%clk 0:09:55.9]} 13... Be7 {[%clk 0:11:21.1]} 14. b3
{[%clk 0:09:35.7]} 14... b5 {[%clk 0:11:15.2]} 15. a4 {[%clk 0:09:29.2]} 15...
Na5 {[%clk 0:11:09.4]} 16. b4 {[%clk 0:08:59.4]} 16... Nb7 {[%clk 0:11:04.5]}
17. axb5 {[%clk 0:08:51]} 17... Qxb5 {[%clk 0:11:04.6]} 18. Ra2 {[%clk 0:08:09]}
18... O-O {[%clk 0:10:58.2]} 19. Rfa1 {[%clk 0:08:07.8]} 19... a6 {[%clk
0:10:59.4]} 20. Nb3 {[%clk 0:07:35.8]} 20... Bd8 {[%clk 0:10:47.8]} 21. Nbd2
{[%clk 0:06:24.7]} 21... Bc7 {[%clk 0:10:38.9]} 22. Nf1 {[%clk 0:06:15.8]} 22...
a5 {[%clk 0:10:26.1]} 23. Qc2 {[%clk 0:05:44.2]} 23... Rab8 {[%clk 0:10:14.5]}
24. Qa4 {[%clk 0:05:23.5]} 24... Qxa4 {[%clk 0:10:14.7]} 25. Rxa4 {[%clk
0:05:23.9]} 25... axb4 {[%clk 0:10:11.8]} 26. Rxb4 {[%clk 0:05:24.9]} 26... Na5
{[%clk 0:10:11.8]} 27. Rab1 {[%clk 0:05:12.6]} 27... Nb3 {[%clk 0:10:11.3]} 28.
N3d2 {[%clk 0:05:12.6]} 28... Rxb4 {[%clk 0:10:12.2]} 29. cxb4 {[%clk
0:05:12.4]} 29... Nbxd4 {[%clk 0:10:05.8]} 30. f4 {[%clk 0:04:34.4]} 30... Rb8
{[%clk 0:09:40.7]} 31. Bf2 {[%clk 0:04:29.2]} 31... c3 {[%clk 0:09:18.6]} 32.
Nf3 {[%clk 0:04:10.1]} 32... Ne2+ {[%clk 0:09:13.4]} 33. Kh1 {[%clk 0:04:09.9]}
33... c2 {[%clk 0:09:15.1]} 0-1

[Event "Rapid del Mercoledì"]
[Site "Chess.com"]
[Date "2020.05.27"]
[Round "2"]
[White "sergiodone"]
[Black "SanSecondoPR"]
[Result "1-0"]
[WhiteElo "1439"]
[BlackElo "1303"]
[TimeControl "720+3"]
[EndTime "12:36:36 PDT"]
[Termination "sergiodone ha vinto per abbandono"]

1. e4 {[%clk 0:12:01.8]} 1... e5 {[%clk 0:12:00.9]} 2. d4 {[%clk 0:12:01.9]}
2... exd4 {[%clk 0:12:00.3]} 3. Qxd4 {[%clk 0:12:03.6]} 3... Nc6 {[%clk
0:11:59.1]} 4. Qe3 {[%clk 0:12:05.1]} 4... d5 {[%clk 0:11:47]} 5. f3 {[%clk
0:11:24.3]} 5... d4 {[%clk 0:11:47.1]} 6. Qf2 {[%clk 0:11:19.4]} 6... g6 {[%clk
0:11:30.4]} 7. Bc4 {[%clk 0:11:14.7]} 7... Bg7 {[%clk 0:11:22.8]} 8. Bf4 {[%clk
0:11:12.1]} 8... Nge7 {[%clk 0:11:15.1]} 9. Ne2 {[%clk 0:11:12.4]} 9... O-O
{[%clk 0:11:12.1]} 10. Nd2 {[%clk 0:11:03.4]} 10... Be6 {[%clk 0:10:53.2]} 11.
O-O {[%clk 0:11:04.9]} 11... Bxc4 {[%clk 0:10:42.7]} 12. Nxc4 {[%clk 0:11:05.3]}
12... f5 {[%clk 0:10:21.7]} 13. e5 {[%clk 0:10:55.9]} 13... b5 {[%clk
0:10:02.3]} 14. Nd2 {[%clk 0:10:50.3]} 14... Nxe5 {[%clk 0:09:31.5]} 15. Qg3
{[%clk 0:10:45.2]} 15... N7c6 {[%clk 0:08:51.4]} 16. Kh1 {[%clk 0:10:10.5]}
16... d3 {[%clk 0:08:45]} 17. cxd3 {[%clk 0:10:10.7]} 17... Qxd3 {[%clk
0:08:31.3]} 18. Rae1 {[%clk 0:09:53.2]} 18... Rae8 {[%clk 0:08:22.8]} 19. Nc1
{[%clk 0:09:22.5]} 19... Qd4 {[%clk 0:07:43.1]} 20. Ncb3 {[%clk 0:09:21.8]}
20... Qxb2 {[%clk 0:07:26.7]} 21. Bh6 {[%clk 0:08:00.7]} 21... Qxa2 {[%clk
0:07:02.9]} 22. Bxg7 {[%clk 0:08:00.7]} 22... Kxg7 {[%clk 0:06:57.7]} 23. Rc1
{[%clk 0:07:26.5]} 23... a5 {[%clk 0:06:29.8]} 24. f4 {[%clk 0:07:04.3]} 24...
Nc4 {[%clk 0:06:04]} 25. Qc3+ {[%clk 0:06:59.9]} 25... Kg8 {[%clk 0:05:42.8]}
26. Nxc4 {[%clk 0:07:00.8]} 26... bxc4 {[%clk 0:05:33.8]} 27. Qxc4+ {[%clk
0:07:01.8]} 27... Rf7 {[%clk 0:05:13.8]} 28. Qxc6 {[%clk 0:06:43.6]} 28... Re2
{[%clk 0:04:18.7]} 29. Nd4 {[%clk 0:06:21.9]} 29... Rxg2 {[%clk 0:04:07.4]} 30.
Qxg2 {[%clk 0:06:21.7]} 1-0

[Event "Rapid del Mercoledì"]
[Site "Chess.com"]
[Date "2020.05.27"]
[Round "2"]
[White "fausto2p"]
[Black "sirmale49"]
[Result "0-1"]
[WhiteElo "1183"]
[BlackElo "1374"]
[TimeControl "720+3"]
[EndTime "12:43:48 PDT"]
[Termination "sirmale49 ha vinto per tempo"]

1. d4 {[%clk 0:12:02.9]} 1... Nc6 {[%clk 0:11:56.6]} 2. Nf3 {[%clk 0:11:49.5]}
2... e6 {[%clk 0:11:54.3]} 3. c4 {[%clk 0:11:38.3]} 3... Nf6 {[%clk 0:11:55]} 4.
Nc3 {[%clk 0:11:37.5]} 4... Bb4 {[%clk 0:11:52.6]} 5. e3 {[%clk 0:11:26.9]} 5...
Ne4 {[%clk 0:11:52.2]} 6. Qc2 {[%clk 0:11:20.9]} 6... d5 {[%clk 0:11:19.3]} 7.
a3 {[%clk 0:11:11.3]} 7... Bxc3+ {[%clk 0:11:16.5]} 8. bxc3 {[%clk 0:11:11.3]}
8... Bd7 {[%clk 0:11:05.5]} 9. Bd3 {[%clk 0:10:57.8]} 9... f5 {[%clk 0:11:04.2]}
10. cxd5 {[%clk 0:10:35.5]} 10... exd5 {[%clk 0:11:03]} 11. c4 {[%clk
0:10:15.7]} 11... Be6 {[%clk 0:10:43.2]} 12. O-O {[%clk 0:09:47.6]} 12... h6
{[%clk 0:10:17.5]} 13. cxd5 {[%clk 0:09:11.9]} 13... Bxd5 {[%clk 0:10:01.3]} 14.
Bb5 {[%clk 0:08:57.7]} 14... O-O {[%clk 0:09:55.5]} 15. Bxc6 {[%clk 0:07:20.9]}
15... Bxc6 {[%clk 0:09:47.8]} 16. Ne5 {[%clk 0:07:20.9]} 16... Bd5 {[%clk
0:09:43.1]} 17. a4 {[%clk 0:06:41.7]} 17... c6 {[%clk 0:09:30.3]} 18. Ba3 {[%clk
0:06:26.2]} 18... Rf7 {[%clk 0:09:08]} 19. f3 {[%clk 0:05:29.5]} 19... Rf8
{[%clk 0:09:10.9]} 20. Bxf8 {[%clk 0:05:14.5]} 20... Nd6 {[%clk 0:09:12.5]} 21.
Bxd6 {[%clk 0:05:09.6]} 21... Qxd6 {[%clk 0:09:13.1]} 22. Qc5 {[%clk 0:04:47.2]}
22... Qf6 {[%clk 0:08:56.6]} 23. Rab1 {[%clk 0:04:14.9]} 23... b6 {[%clk
0:08:50]} 24. Qc3 {[%clk 0:03:37.7]} 24... Rd8 {[%clk 0:08:31.3]} 25. Rfc1
{[%clk 0:03:29.1]} 25... Rd6 {[%clk 0:08:23.3]} 26. a5 {[%clk 0:03:11.1]} 26...
b5 {[%clk 0:07:27.8]} 27. Qc5 {[%clk 0:02:51]} 27... a6 {[%clk 0:07:23.8]} 28.
Qb6 {[%clk 0:02:35.3]} 28... c5 {[%clk 0:06:45.7]} 29. Qxc5 {[%clk 0:02:35.2]}
29... Bc4 {[%clk 0:06:33.4]} 30. Nxc4 {[%clk 0:02:17.2]} 30... bxc4 {[%clk
0:06:29.1]} 31. Qxc4+ {[%clk 0:02:14]} 31... Kh7 {[%clk 0:06:29.3]} 32. Qc7
{[%clk 0:01:49.5]} 32... f4 {[%clk 0:06:18.7]} 33. Rb6 {[%clk 0:00:58.7]} 33...
Rxb6 {[%clk 0:05:57.3]} 34. Qxb6 {[%clk 0:00:57.2]} 34... Qg5 {[%clk 0:05:51.3]}
35. e4 {[%clk 0:00:54.5]} 35... Qe7 {[%clk 0:05:39.4]} 36. Qc5 {[%clk 0:00:46]}
36... Qb7 {[%clk 0:05:33]} 37. Qb6 {[%clk 0:00:43.7]} 37... Qe7 {[%clk
0:05:26.8]} 38. Rc5 {[%clk 0:00:37.1]} 38... Qf7 {[%clk 0:05:20.4]} 39. d5
{[%clk 0:00:34.2]} 39... Qd7 {[%clk 0:05:19.5]} 40. Rc6 {[%clk 0:00:31.9]} 40...
Qe7 {[%clk 0:05:17.9]} 41. Qc5 {[%clk 0:00:30.5]} 41... Qb7 {[%clk 0:05:06.4]}
42. Qb6 {[%clk 0:00:27.2]} 42... Qe7 {[%clk 0:05:04.7]} 43. d6 {[%clk
0:00:22.4]} 43... Qe5 {[%clk 0:05:02.1]} 44. Qc5 {[%clk 0:00:09.4]} 44... Qa1+
{[%clk 0:05:02.3]} 45. Qc1 {[%clk 0:00:07.9]} 45... Qd4+ {[%clk 0:04:58.1]} 46.
Kh1 {[%clk 0:00:06.1]} 46... Qe5 {[%clk 0:04:56]} 0-1